bitfinex-derivatives/quotes_ETHF0:USTF0_20250926
["timestamp","ask_amount","ask_price","bid_price","bid_amount"]
[1758857990143,0.4502,3953.5,3953.4,41.059]
[1758857991041,0.5938,3953.0,3952.7,0.4551]
[1758857991346,0.771,3952.8,3952.7,0.4551]
[1758857991546,0.771,3952.8,3952.7,0.7151]
[1758857992245,0.771,3952.8,3952.7,0.26]
[1758857992752,0.3137,3952.7,3952.6,41.25511]
[1758857992953,0.3137,3952.7,3952.6,41.51511]
[1758857993151,0.2299,3952.3,3952.2,0.45516]
[1758857993342,0.2299,3952.3,3952.1,0.45516]
[1758857993343,0.4573,3952.3,3952.1,0.45516]
[1758857993646,0.771,3952.2,3952.1,0.45516]
[1758857993838,0.771,3952.2,3952.1,0.71416]
[1758857994251,0.771,3952.2,3952.1,41.51416]
[1758857994642,0.771,3952.2,3952.1,41.25516]
[1758857994845,0.771,3952.2,3952.1,41.51416]
[1758857995049,0.771,3952.2,3952.1,41.25516]
[1758857995243,0.771,3952.2,3952.1,41.51416]
[1758857997346,0.771,3952.2,3952.1,41.25516]
[1758857997652,0.771,3952.2,3952.1,41.059]
[1758857998955,0.771,3952.2,3952.1,40.8]
[1758857999157,0.771,3952.2,3952.1,41.059]
[1758857999952,0.5436,3952.2,3952.1,41.059]
[1758858000259,0.5516,3952.9,3952.8,0.4539]
[1758858000553,0.2193,3952.2,3952.1,46.7218831]
[1758858000752,0.5516,3952.2,3952.1,46.9808831]
[1758858001051,0.4608,3952.5,3952.4,0.6904]
[1758858001244,0.4608,3952.5,3952.4,1.40454]
[1758858001447,0.9011,3953.0,3952.9,0.2286]
[1758858001746,1.45041691,3953.0,3952.9,0.7129]
[1758858002148,0.88161691,3953.0,3952.9,1.40448]
[1758858002349,0.88161691,3953.0,3952.9,0.4539]
[1758858002350,1.31391691,3953.0,3952.9,0.4539]
[1758858002543,1.44241691,3953.0,3952.9,0.259]
[1758858002747,1.11011691,3953.0,3952.6,0.45511]
[1758858002945,0.4323,3952.8,3952.7,0.4876]
[1758858003149,0.7646,3952.8,3952.7,0.4876]
[1758858003350,0.3323,3952.7,3952.4,0.45513]
[1758858003552,0.6801,3952.5,3952.4,0.90903]
[1758858003754,0.6801,3952.5,3952.4,1.14553]
[1758858004060,0.6801,3952.5,3952.4,1.16803]
[1758858004357,0.6801,3952.5,3952.4,0.90903]
[1758858004657,0.6801,3952.5,3952.4,1.16803]
[1758858005354,0.6801,3952.5,3952.4,0.90903]
[1758858005768,0.8931,3952.5,3952.4,1.16803]
[1758858006156,1.23156412,3952.5,3952.4,1.16803]
[1758858006349,2.93576072,3953.8,3953.3,0.4571]
[1758858006350,0.5608,3953.4,3953.3,0.4571]
[1758858006554,1.33537851,3953.4,3953.3,0.4879]
[1758858006753,1.33537851,3953.4,3953.3,0.259]
[1758858007057,1.33537851,3953.4,3953.3,0.4879]
[1758858007458,1.33537851,3953.4,3953.3,0.7161]
[1758858008960,1.33537851,3953.4,3952.8,5.9218831]
[1758858008961,1.23884,3953.3,3953.2,0.2289]
[1758858009168,1.33537851,3953.3,3953.2,0.4879]
[1758858009660,1.33537851,3953.3,3953.2,0.2289]
[1758858009866,1.33537851,3953.3,3953.2,0.4879]
[1758858010956,1.33537851,3953.3,3953.0,0.45506]
[1758858011260,0.7838,3953.3,3953.2,0.259]
[1758858011460,1.33561214,3953.3,3953.2,0.259]
[1758858012265,1.33561214,3953.3,3953.0,0.45506]
[1758858012467,1.33561214,3953.2,3953.1,0.4879]
[1758858012662,1.33561214,3953.2,3953.1,2.17672208]
[1758858013659,1.33561214,3953.2,3953.1,2.40492208]
[1758858014467,0.55181214,3953.2,3953.1,2.64142208]
[1758858015069,0.472,3953.5,3953.3,0.4571]
[1758858015070,0.7838,3953.4,3953.3,0.4571]
[1758858015266,1.33595325,3953.4,3953.3,0.7161]
[1758858015462,1.33595325,3953.4,3953.3,2.40492208]
[1758858015866,1.33595325,3953.4,3953.3,43.20492208]
[1758858016362,1.33595325,3953.4,3953.3,42.94592208]
[1758858016571,1.33595325,3953.4,3953.3,43.20492208]
[1758858017070,1.33595325,3953.4,3953.3,43.44142208]
[1758858017864,1.11295325,3953.4,3953.3,43.44142208]
[1758858018064,0.55215325,3953.4,3953.3,43.44142208]
[1758858018666,0.55215325,3953.4,3953.3,43.778361]
[1758858021268,0.88765325,3953.4,3953.3,43.778361]
[1758858021466,0.88765325,3953.4,3953.3,43.540861]
[1758858023175,0.88765325,3953.4,3953.3,43.282861]
[1758858023377,0.88765325,3953.4,3953.3,43.540861]
[1758858024265,0.88765325,3953.4,3953.3,43.777361]
[1758858024462,0.55215325,3953.4,3953.3,43.777361]
[1758858024863,0.1617,3954.0,3953.9,1.14857]
[1758858025074,0.0252,3954.0,3953.9,3.432331]
[1758858025274,0.3355,3954.0,3953.9,3.432331]
[1758858025477,0.5749,3954.5,3954.4,0.4571]
[1758858025774,0.5749,3954.5,3954.4,2.740861]
[1758858025975,0.9104,3954.5,3954.4,2.740861]
[1758858026174,0.3355,3954.5,3954.4,2.977361]
[1758858026672,0.3355,3954.5,3954.4,2.740861]
[1758858026673,0.9104,3954.5,3954.4,2.740861]
[1758858026875,0.7838,3954.1,3954.0,0.68385]
[1758858027368,0.9104,3953.5,3953.4,0.4571]
[1758858027570,0.9104,3953.5,3953.4,0.7151]
[1758858028475,0.4621,3953.5,3953.4,0.9516]
[1758858028675,0.1518,3954.0,3953.7,0.91208]
[1758858028676,0.5608,3953.8,3953.7,0.91208]
[1758858028871,0.7838,3953.8,3953.7,0.258]
[1758858029579,0.7838,3953.8,3953.7,2.977361]
[1758858029580,0.3355,3953.8,3953.7,2.977361]
[1758858030074,0.7126,3954.0,3953.9,0.4571]
[1758858030273,0.7126,3954.0,3953.9,0.7151]
[1758858030475,0.3201,3953.9,3953.4,2.480781]
[1758858030675,0.9031,3953.5,3953.4,2.710481]
[1758858030878,0.9031,3953.5,3953.4,2.968481]
[1758858031077,0.9031,3953.5,3953.4,3.176381]
[1758858031271,0.6928,3954.0,3953.9,0.45497]
[1758858031580,0.541,3954.4,3954.3,0.2297]
[1758858031780,0.541,3954.4,3954.3,0.4877]
[1758858031781,0.7657,3954.4,3954.3,0.4877]
[1758858033174,0.9031,3954.0,3953.9,0.4376]
[1758858033374,0.9031,3954.0,3953.9,0.4877]
[1758858033668,0.9031,3954.0,3953.9,0.258]
[1758858034982,0.9031,3954.0,3953.9,0.6956]
[1758858035175,0.9031,3954.0,3953.9,0.9321]
[1758858035176,0.3201,3954.0,3953.9,0.9321]
[1758858035681,0.541,3954.0,3953.9,0.6956]
[1758858035877,0.6784,3954.0,3953.9,0.6956]
[1758858036174,0.6784,3954.0,3953.9,0.9321]
[1758858036378,0.9031,3954.0,3953.9,0.6956]
[1758858036775,0.6784,3954.0,3953.9,0.6956]
[1758858036975,0.3201,3954.4,3953.9,0.4945]
[1758858037175,0.541,3954.4,3954.3,2.463361]
[1758858037379,1.09154776,3954.4,3954.3,3.176271]
[1758858037580,0.7657,3954.4,3954.3,3.176271]
[1758858040181,0.7657,3954.4,3954.3,0.2297]
[1758858040385,0.4456,3954.4,3954.0,0.45495]
[1758858040883,0.3201,3954.3,3954.1,0.71294]
[1758858041083,0.6067,3954.5,3954.1,0.71294]
[1758858041084,0.7657,3954.2,3954.1,0.94264]
[1758858041882,0.7657,3954.2,3954.1,3.412801]
[1758858041883,0.3201,3954.2,3954.1,3.412801]
[1758858042282,0.541,3954.2,3954.1,3.412801]
[1758858042485,0.3201,3954.2,3954.1,3.412801]
[1758858042887,0.7657,3954.2,3954.1,2.968401]
[1758858043491,0.7657,3954.2,3953.3,40.8]
[1758858043686,0.3201,3953.5,3953.4,3.154881]
[1758858043988,0.9031,3953.5,3953.4,3.176381]
[1758858045084,0.9031,3953.5,3953.4,43.976381]
[1758858045888,0.3201,3953.9,3953.8,0.89258]
[1758858046087,0.3201,3953.9,3953.8,3.412841]
[1758858046387,0.541,3953.9,3953.8,3.412841]
[1758858046592,1.09163434,3953.9,3953.8,3.412841]
[1758858046792,1.31633434,3953.9,3953.8,2.463361]
[1758858046989,1.31633434,3953.9,3953.8,2.721361]
[1758858047194,0.7657,3953.9,3953.8,2.721361]
[1758858047988,0.541,3953.9,3953.8,2.721361]
[1758858048494,0.541,3953.9,3953.8,2.957861]
[1758858048986,0.4575,3954.0,3953.9,0.89257]
[1758858049187,0.6784,3954.0,3953.9,0.89257]
[1758858049390,1.22895904,3954.0,3953.9,0.89257]
[1758858049793,1.22895904,3954.0,3953.9,1.12907]
[1758858049989,0.3201,3954.3,3953.9,0.6741]
[1758858050296,0.541,3954.3,3954.2,2.918291]
[1758858050490,0.7657,3954.3,3954.2,0.4376]
[1758858050695,1.31649964,3954.3,3954.2,0.4877]
[1758858053405,1.31649964,3954.3,3954.2,0.258]
[1758858053602,1.31649964,3954.3,3954.2,0.6956]
[1758858053904,1.31649964,3954.3,3954.2,2.721361]
[1758858054605,1.31649964,3954.3,3954.2,2.957861]
[1758858054808,0.87089964,3954.3,3954.2,2.957861]
[1758858055103,1.31649964,3954.3,3954.0,0.45495]
[1758858055304,0.7657,3954.3,3954.2,0.258]
[1758858055607,1.31550519,3954.3,3954.2,0.258]
[1758858057801,0.2209,3953.7,3953.6,2.710461]
[1758858058104,0.7657,3953.7,3953.6,3.176361]
[1758858058294,0.3201,3953.7,3953.6,3.412861]
[1758858058691,0.3201,3953.7,3953.6,3.176361]
[1758858058692,0.7657,3953.7,3953.6,3.176361]
[1758858059505,0.7657,3953.7,3953.6,3.154861]
[1758858059705,0.7657,3953.7,3953.6,3.412861]
[1758858060200,0.1374,3954.0,3953.9,0.45497]
[1758858060503,0.4231,3954.2,3953.9,2.738721]
[1758858060702,0.5502,3954.0,3953.9,2.966821]
[1758858060900,0.8621,3954.0,3953.9,2.966821]
[1758858061206,0.8621,3954.0,3953.9,3.176121]
[1758858061502,0.1518,3954.5,3953.9,2.721161]
[1758858061703,1.07266946,3954.4,3954.3,0.4374]
[1758858061902,1.07266946,3954.4,3954.3,0.6954]
[1758858062299,1.07266946,3954.4,3954.3,0.932]
[1758858063209,1.07266946,3954.4,3954.3,0.6954]
[1758858063909,1.07266946,3954.4,3954.3,0.932]
[1758858064307,0.55006946,3954.4,3954.3,0.932]
[1758858065008,1.08986946,3954.4,3954.3,0.932]
[1758858066906,1.29896946,3954.4,3954.3,0.258]
[1758858067108,1.29896946,3954.4,3954.3,0.4871]
[1758858067608,1.29896946,3954.4,3954.3,0.7039]
[1758858069318,1.29896946,3954.4,3954.3,0.4459]
[1758858069609,1.29896946,3954.4,3954.3,0.7039]
[1758858071812,1.29896946,3954.4,3954.3,0.4871]
[1758858073509,0.321,3954.3,3953.5,0.2365]
[1758858073716,0.7489,3953.7,3953.6,2.709861]
[1758858073908,0.7489,3953.7,3953.6,0.6841]
[1758858074212,0.7489,3953.7,3953.6,3.184661]
[1758858075219,0.45492,3954.4,3954.3,1.13732]
[1758858075220,0.321,3954.4,3954.3,1.13732]
[1758858075515,0.321,3954.4,3954.3,3.421081]
[1758858075914,0.0252,3954.6,3954.5,1.1373]
[1758858076112,0.0252,3954.6,3954.5,1.3953]
[1758858076304,0.89701427,3954.6,3954.5,42.1953]
[1758858078214,0.3462,3954.6,3954.5,42.1953]
[1758858078810,0.89701186,3954.6,3954.5,42.1953]
[1758858079013,0.57601186,3954.6,3954.5,42.1953]
[1758858079212,0.0252,3954.6,3954.5,42.1953]
[1758858079815,0.89709568,3954.6,3954.5,42.1953]
[1758858080115,0.3462,3954.6,3954.5,42.1953]
[1758858080315,0.89705137,3954.6,3954.5,41.9588]
[1758858080718,0.89705137,3954.6,3954.5,43.64619241]
[1758858081018,0.89705137,3954.6,3954.5,43.88269241]
[1758858081425,0.89705137,3954.6,3954.5,43.64619241]
[1758858081725,0.89705137,3954.6,3954.3,2.14231241]
[1758858081726,0.7489,3954.4,3954.3,2.14231241]
[1758858082019,0.7489,3954.4,3954.3,1.68739241]
[1758858082224,0.7489,3954.4,3954.3,0.258]
[1758858082225,1.29950576,3954.4,3954.3,0.258]
[1758858085725,1.29950576,3954.4,3954.2,40.8]
[1758858085929,1.29950576,3954.4,3953.8,0.45498]
[1758858085930,0.4279,3953.9,3953.8,0.45498]
[1758858086225,1.29950576,3953.9,3953.8,1.15888]
[1758858086418,0.7489,3953.9,3953.8,42.19538]
[1758858087427,0.5398,3953.9,3953.8,42.19538]
[1758858089823,0.321,3953.9,3953.8,42.19538]
[1758858090032,0.5555,3954.5,3954.4,0.2291]
[1758858090324,0.45494,3954.3,3954.1,1.68739241]
[1758858090524,1.23964,3954.3,3954.2,0.258]
[1758858090827,1.79013449,3954.3,3954.2,0.258]
[1758858091028,1.33519449,3954.3,3954.2,0.258]
[1758858091330,1.33519449,3954.3,3954.2,0.4789]
[1758858092131,1.33519449,3954.3,3954.2,0.6971]
[1758858092922,1.33519449,3954.3,3954.2,2.62099241]
[1758858093228,1.33519449,3954.3,3954.2,2.38449241]
[1758858096229,1.11569449,3954.3,3954.2,2.62099241]
[1758858097027,0.55049449,3954.3,3954.2,2.62099241]
[1758858097325,0.0252,3954.4,3954.3,1.13053]
[1758858101733,0.0252,3954.4,3954.3,6.13053]
[1758858102031,0.0252,3954.4,3954.3,1.13053]
[1758858102221,0.1374,3955.5,3955.3,0.2209]
[1758858102527,1.11542609,3955.4,3955.3,0.6756]
[1758858102730,0.5652,3955.4,3955.3,0.9336]
[1758858103927,0.7847,3955.4,3955.3,0.6971]
[1758858104827,0.7847,3955.4,3955.3,1.94539241]
[1758858105027,0.7847,3955.4,3955.3,2.16629241]
[1758858106333,0.3401,3955.4,3955.3,2.62099241]
[1758858106533,0.1374,3955.5,3955.3,2.62099241]
[1758858106534,0.3401,3955.8,3955.4,0.45478]
[1758858106840,0.7847,3955.8,3955.7,2.12649241]
[1758858107134,1.33444438,3955.8,3955.7,2.38449241]
[1758858109434,1.33402724,3955.8,3955.7,2.38449241]
[1758858111130,0.7847,3955.8,3955.7,2.38449241]
[1758858111436,0.5652,3955.8,3955.7,2.62099241]
[1758858112232,0.3401,3956.0,3955.9,0.6756]
[1758858112436,0.3401,3956.0,3955.9,2.62099241]
[1758858113832,0.3401,3956.4,3956.2,0.4547]
[1758858114033,0.3401,3956.4,3956.3,2.62099241]
[1758858114233,0.3401,3956.9,3956.3,3.07567241]
[1758858114430,0.5652,3956.4,3956.3,1.13028]
[1758858114734,0.5652,3956.4,3956.3,1.38828]
[1758858115436,0.7847,3956.4,3956.3,0.4391]
[1758858115640,0.7847,3956.4,3956.3,2.38449241]
[1758858118034,0.7847,3956.4,3956.3,2.12649241]
[1758858118228,0.7847,3956.4,3956.3,2.38449241]
[1758858118443,0.7847,3956.4,3956.3,2.62099241]
[1758858118642,0.7847,3956.4,3956.3,2.38449241]
[1758858120636,1.23938,3956.4,3956.3,2.12649241]
[1758858120836,1.23938,3956.4,3954.7,1.81571633]
[1758858120837,0.3142,3955.8,3955.7,1.68739241]
[1758858121041,0.7522,3955.8,3955.7,1.94539241]
[1758858121541,0.7522,3955.8,3955.7,42.48739241]
[1758858121738,0.45476,3955.7,3955.1,0.45482]
[1758858122054,0.7522,3955.8,3955.0,1.68739241]
[1758858122055,0.7522,3955.2,3955.0,1.68739241]
[1758858122340,0.7522,3955.2,3955.1,0.197]
[1758858122542,0.7522,3955.2,3955.0,1.68739241]
[1758858122739,0.438,3955.2,3955.1,1.94539241]
[1758858123346,0.7522,3955.2,3955.1,1.94539241]
[1758858124339,0.1376,3955.5,3954.5,0.90419]
[1758858124340,0.4332,3954.6,3954.5,0.90419]
[1758858124540,0.4332,3954.6,3954.5,2.84958241]
[1758858124541,0.7755,3954.6,3954.5,2.84958241]
[1758858125043,0.3423,3954.9,3954.8,0.6856]
[1758858125240,0.3423,3955.4,3955.3,0.6856]
[1758858125444,0.7755,3955.4,3955.3,0.7073]
[1758858125645,1.23031,3955.3,3955.2,1.68739241]
[1758858125842,1.23031,3955.3,3955.2,1.94539241]
[1758858126340,0.7755,3955.3,3955.2,2.17069241]
[1758858126537,0.7755,3955.3,3955.2,1.91269241]
[1758858126746,0.7755,3955.3,3955.2,2.17069241]
[1758858128141,1.32491219,3955.3,3955.2,2.17069241]
[1758858128640,0.7755,3955.3,3955.2,1.91269241]
[1758858128847,1.32497008,3955.3,3955.2,2.17069241]
[1758858130252,1.32497008,3955.3,3955.2,1.94539241]
[1758858130940,1.32497008,3955.3,3955.2,1.68739241]
[1758858131250,1.35624,3955.0,3954.9,1.68739241]
[1758858131445,1.35624,3955.0,3954.9,1.94539241]
[1758858131642,1.35624,3955.0,3954.2,0.2363]
[1758858131643,0.7755,3954.8,3954.7,1.68739241]
[1758858131843,0.5646,3954.3,3954.2,0.4493]
[1758858132039,0.5646,3954.3,3954.2,1.68739241]
[1758858132040,0.7755,3954.3,3954.2,1.68739241]
[1758858132350,0.7755,3954.3,3954.2,1.94539241]
[1758858132751,0.7755,3954.3,3954.2,2.17069241]
[1758858133548,0.7755,3954.3,3953.9,40.8]
[1758858133751,0.4682,3954.0,3953.9,40.8]
[1758858133954,0.9014,3954.5,3954.4,0.2253]
[1758858134253,0.9014,3954.5,3954.4,2.63099241]
[1758858134254,1.45084311,3954.5,3954.4,2.63099241]
[1758858134748,0.5646,3954.9,3954.8,0.6856]
[1758858134953,0.59239,3955.5,3954.8,3.08584241]
[1758858135141,0.3423,3955.2,3955.1,0.6856]
[1758858135342,0.7755,3955.2,3955.1,0.2253]
[1758858135549,0.7755,3955.2,3954.6,0.2363]
[1758858135550,0.5646,3954.7,3954.6,0.6856]
[1758858135747,0.3423,3954.9,3954.8,0.6856]
[1758858136253,0.3423,3954.9,3954.8,2.37299241]
[1758858136448,0.5646,3954.9,3954.8,2.39469241]
[1758858136953,0.7755,3954.9,3954.8,2.13669241]
[1758858137147,0.7755,3954.9,3954.8,1.91269241]
[1758858137347,0.7755,3954.9,3954.8,1.94539241]
[1758858138157,0.7755,3954.9,3954.8,2.17069241]
[1758858138853,1.47946,3954.8,3953.8,0.4493]
[1758858139056,0.7755,3953.9,3953.8,0.4493]
[1758858139256,0.7755,3953.9,3953.8,2.63099241]
[1758858139257,0.3423,3953.9,3953.8,2.63099241]
[1758858139451,0.3423,3954.2,3954.1,0.4493]
[1758858139750,0.5646,3954.2,3954.1,2.37299241]
[1758858139954,0.7755,3954.2,3954.1,2.13669241]
[1758858140151,0.3423,3954.2,3954.1,2.37299241]
[1758858140348,0.3423,3954.4,3954.2,0.2363]
[1758858140548,0.5646,3954.4,3954.3,0.7073]
[1758858140852,0.7755,3954.4,3954.3,0.7073]
[1758858141055,0.7755,3954.4,3954.3,1.94539241]
[1758858141252,0.7755,3954.4,3954.3,1.68739241]
[1758858141754,0.7755,3954.4,3952.8,1.68739241]
[1758858141755,1.23044,3954.1,3954.0,1.68739241]
[1758858141958,1.23044,3954.1,3954.0,1.94539241]
[1758858142151,1.23044,3954.1,3954.0,1.68739241]
[1758858142352,1.23044,3954.1,3954.0,1.94539241]
[1758858142662,1.23044,3954.1,3954.0,0.258]
[1758858143757,0.45497,3953.9,3953.8,2.0257967]
[1758858143958,1.23047,3953.9,3953.8,2.5090967]
[1758858144145,0.7755,3953.9,3953.8,2.7330967]
[1758858144455,0.3423,3953.9,3953.8,2.9693967]
[1758858144756,0.5646,3953.9,3953.8,2.7330967]
[1758858145352,1.01957,3953.9,3953.8,2.7330967]
[1758858145752,1.23047,3953.9,3953.8,2.7330967]
[1758858145953,1.23047,3953.9,3953.8,2.4750967]
[1758858146158,1.23047,3953.9,3953.8,2.7330967]
[1758858149957,0.7755,3953.9,3953.8,2.7330967]
[1758858152356,0.7755,3953.9,3953.8,0.4493]
[1758858152562,0.7755,3953.9,3953.8,0.258]
[1758858152763,0.7755,3953.9,3953.8,0.4868]
[1758858153762,0.7755,3953.9,3953.8,0.6974]
[1758858153957,0.3423,3953.9,3953.8,0.9341]
[1758858154263,0.56,3953.9,3953.8,0.6974]
[1758858154464,0.56,3953.9,3953.8,0.9341]
[1758858155162,0.56,3953.9,3953.8,0.6974]
[1758858155356,0.7772,3953.9,3953.8,0.6974]
[1758858155862,0.7772,3953.9,3953.8,0.9341]
[1758858156060,0.7772,3953.9,3953.8,0.4868]
[1758858156366,1.32705017,3953.9,3953.8,0.6974]
[1758858156759,1.32705017,3953.9,3953.8,0.9341]
[1758858157165,0.7772,3953.9,3953.8,0.9341]
[1758858157365,1.32712598,3953.9,3953.8,0.9341]
[1758858157558,1.32712598,3953.9,3953.8,0.6974]
[1758858158066,1.32712598,3953.9,3953.8,0.4394]
[1758858158266,1.32712598,3953.9,3953.8,0.6974]
[1758858161668,1.32712598,3953.9,3953.8,0.9341]
[1758858162173,1.32712598,3953.9,3953.8,0.6974]
[1758858164767,1.32712598,3953.9,3953.8,2.5125967]
[1758858164971,1.32712598,3953.9,3953.8,2.7231967]
[1758858165370,1.32712598,3953.9,3953.8,2.5125967]
[1758858166582,1.32712598,3953.9,3953.8,2.7231967]
[1758858168576,0.89222598,3953.9,3953.8,2.9598967]
[1758858168882,0.54992598,3953.9,3953.8,2.9598967]
[1758858169480,0.6852,3954.5,3954.4,0.4394]
[1758858169681,1.23671878,3954.5,3954.4,2.7231967]
[1758858169881,1.23671878,3954.5,3954.4,2.9598967]
[1758858170280,1.45391878,3954.5,3954.4,0.6974]
[1758858175384,1.45391878,3954.5,3954.4,2.7231967]
[1758858177693,1.45391878,3954.5,3954.4,2.9598967]
[1758858178386,1.23671878,3954.5,3954.4,2.9598967]
[1758858178681,0.3416,3954.5,3954.4,2.9598967]
[1758858178882,0.89248763,3954.5,3954.4,2.9598967]
[1758858179094,1.11018763,3954.5,3954.4,2.9598967]
[1758858179294,1.24448763,3954.5,3954.4,2.9598967]
[1758858180300,1.24448763,3954.5,3954.4,2.9597967]
[1758858180999,1.24448763,3954.5,3954.4,2.7231967]
[1758858181297,1.46308763,3954.5,3954.4,2.7231967]
[1758858184902,0.4232,3953.9,3953.8,0.2213]
[1758858185094,0.7594,3953.9,3953.8,2.5050967]
[1758858185494,0.7594,3953.9,3953.8,2.9560967]
[1758858185992,0.545,3953.9,3953.8,2.9560967]
[1758858186992,0.545,3953.9,3953.8,2.6980967]
[1758858187190,0.7594,3953.9,3953.8,2.7184967]
[1758858187501,0.7594,3953.9,3953.8,2.9550967]
[1758858187800,0.545,3953.9,3953.8,2.9550967]
[1758858188502,0.3362,3953.9,3953.8,2.9550967]
[1758858188802,0.3431,3954.5,3954.4,0.6723]
[1758858188994,0.0252,3954.7,3954.5,0.7406]
[1758858189195,0.0252,3954.7,3954.6,0.9293]
[1758858189603,0.0252,3954.7,3954.6,41.7293]
[1758858189903,0.58543,3956.0,3955.5,0.45477]
[1758858190100,0.58543,3956.0,3954.7,1.13718]
[1758858190101,0.5539,3956.0,3955.9,2.4614967]
[1758858190400,1.44057372,3956.0,3955.9,2.7184967]
[1758858190804,1.22617372,3956.0,3955.9,2.9550967]
[1758858191192,0.3362,3956.0,3955.9,2.9550967]
[1758858191405,0.1307,3957.0,3956.3,0.6723]
[1758858191406,0.545,3956.4,3956.3,0.6723]
[1758858191604,1.09500814,3956.4,3956.3,2.9550967]
[1758858191903,0.545,3956.4,3956.3,2.9550967]
[1758858195898,0.3362,3956.4,3956.3,2.9550967]
[1758858196598,0.3395,3957.0,3956.9,0.2213]
[1758858196805,1.10208475,3957.0,3956.9,0.4783]
[1758858197307,0.8901,3957.0,3956.9,0.4783]
[1758858198803,0.8901,3957.0,3956.9,0.6927]
[1758858199500,0.3362,3957.0,3956.9,2.9550967]
[1758858199702,0.1307,3957.5,3956.9,2.7184967]
[1758858200003,0.3362,3957.4,3957.2,2.0257967]
[1758858200196,0.545,3957.4,3957.3,0.257]
[1758858200400,0.7594,3957.4,3957.3,0.6927]
[1758858200707,0.3362,3957.4,3957.3,0.9293]
[1758858200904,0.7814,3957.9,3957.8,0.2213]
[1758858201108,0.7814,3957.9,3957.8,0.4783]
[1758858201708,0.7814,3957.9,3957.8,0.257]
[1758858202009,0.545,3957.1,3957.0,2.6980967]
[1758858202207,0.545,3957.1,3957.0,2.9550967]
[1758858202508,0.3362,3957.1,3957.0,2.9550967]
[1758858203411,0.6757,3957.5,3957.4,0.4357]
[1758858203604,0.6757,3957.5,3957.4,1.38386]
[1758858204607,0.6757,3957.5,3957.4,3.06895937]
[1758858205106,0.6757,3957.5,3957.4,0.9293]
[1758858205311,0.8901,3957.5,3957.4,2.37779937]
[1758858208805,0.6757,3957.5,3957.4,2.12079937]
[1758858209015,0.8901,3957.5,3957.4,2.37779937]
[1758858209511,0.6757,3957.0,3956.9,42.93970937]
[1758858209706,0.6757,3957.0,3956.9,1.68509937]
[1758858209913,0.4232,3956.8,3956.7,1.68509937]
[1758858210107,0.7594,3956.8,3956.7,1.94209937]
[1758858210310,0.7594,3956.8,3956.7,42.96339937]
[1758858213821,0.7594,3956.8,3956.7,42.70639937]
[1758858214017,0.7594,3956.8,3956.7,42.96339937]
[1758858215413,0.3362,3956.8,3956.7,43.19979937]
[1758858215612,0.443,3957.0,3956.9,0.4354]
[1758858215912,0.443,3957.0,3956.9,2.61389937]
[1758858216117,0.443,3957.0,3956.9,2.35689937]
[1758858216308,0.443,3957.0,3956.9,2.61389937]
[1758858216713,0.3123,3957.0,3956.9,2.61389937]
[1758858218212,0.86128725,3957.0,3956.9,2.61389937]
[1758858219633,0.54898725,3957.0,3956.9,2.61389937]
[1758858219920,0.80735,3957.5,3957.4,0.4354]
[1758858220123,1.35691035,3957.5,3957.4,2.37749937]
[1758858220318,1.35691035,3957.5,3957.1,0.45459]
[1758858220319,1.87781035,3957.5,3957.1,0.45459]
[1758858220518,1.87781035,3957.5,3956.5,0.6944]
[1758858220519,0.7473,3956.6,3956.5,0.6944]
[1758858220726,1.29686035,3956.6,3956.5,2.37949937]
[1758858224925,1.29686035,3956.6,3956.5,0.4718]
[1758858225224,1.29686035,3956.6,3956.5,0.259]
[1758858226324,0.58107,3956.5,3956.4,42.48509937]
[1758858226628,1.87793035,3956.5,3956.4,1.94409937]
[1758858227128,1.87793035,3956.5,3956.4,2.15689937]
[1758858227926,1.202,3956.2,3956.1,1.89789937]
[1758858228120,1.75156035,3956.2,3956.1,2.15689937]
[1758858229628,1.75156035,3956.2,3956.1,2.37949937]
[1758858230528,1.202,3956.2,3956.1,2.37949937]
[1758858231128,1.75187891,3956.2,3956.1,2.37949937]
[1758858232130,1.75187891,3956.2,3956.1,2.12049937]
[1758858232432,1.75187891,3956.2,3956.1,2.37949937]
[1758858233022,1.75187891,3956.2,3956.1,2.61589937]
[1758858233523,0.767,3956.2,3956.1,2.61589937]
[1758858234627,0.45468,3956.4,3956.1,2.61589937]
[1758858234931,0.54975955,3956.3,3956.2,0.6718]
[1758858235234,0.86205955,3956.3,3956.2,0.6718]
[1758858235423,1.08845955,3956.3,3956.2,0.6718]
[1758858235823,0.5387,3956.3,3956.2,0.6718]
[1758858236133,1.08850296,3956.3,3956.2,0.6718]
[1758858239329,1.29710296,3956.3,3956.2,0.6718]
[1758858239536,1.29710296,3956.3,3956.2,0.4354]
[1758858239836,1.29710296,3956.3,3956.2,0.6718]
[1758858240632,0.3123,3956.3,3956.2,0.6718]
[1758858240936,0.5388,3956.3,3956.2,2.12049937]
[1758858241127,0.755,3956.3,3956.2,2.12049937]
[1758858241632,0.1264,3956.5,3956.3,0.45469]
[1758858241932,0.323,3956.4,3956.3,1.13709]
[1758858242137,0.323,3956.4,3956.3,1.39509]
[1758858242439,0.5495,3956.4,3956.3,1.39509]
[1758858242636,0.323,3956.4,3956.3,1.39509]
[1758858242828,0.68114,3956.8,3956.7,0.4448]
[1758858243034,1.55443018,3956.8,3956.7,2.38789937]
[1758858245442,1.55443018,3956.8,3956.7,2.62429937]
[1758858245443,0.87329018,3956.8,3956.7,2.62429937]
[1758858245642,0.323,3956.8,3956.7,2.62429937]
[1758858245847,0.3405,3957.0,3956.9,0.6687]
[1758858246043,0.3405,3957.0,3956.9,0.9267]
[1758858246243,0.89044003,3957.0,3956.9,0.9267]
[1758858246446,1.23444003,3957.0,3956.9,2.61179937]
[1758858246737,0.57514003,3957.0,3956.9,2.61179937]
[1758858246938,0.3153,3957.6,3957.5,0.6687]
[1758858247135,0.3153,3957.6,3957.5,0.9267]
[1758858247441,0.3153,3957.6,3957.5,41.7267]